bitfinex/quotes_ETHUSD_20220115
["timestamp","ask_amount","ask_price","bid_price","bid_amount"]
[1642281512104,12.16245745,3351.0,3350.9,8.4977138]
[1642281512505,12.16245745,3351.0,3350.9,9.20850837]
[1642281512808,12.16245745,3351.0,3350.9,9.20930837]
[1642281513105,12.16245745,3351.0,3350.9,9.09000837]
[1642281513706,12.16245745,3351.0,3350.9,9.04995247]
[1642281513959,12.19420945,3351.0,3350.9,8.96469457]
[1642281514158,12.19420945,3351.0,3350.9,8.95829457]
[1642281514357,12.19420945,3351.0,3350.9,8.95749457]
[1642281514557,12.19012145,3351.0,3350.9,8.95749457]
[1642281514758,12.95158445,3351.0,3350.9,8.96229457]
[1642281514964,12.95158445,3351.0,3350.9,8.2531]
[1642281515159,12.96369545,3351.0,3350.9,8.2515]
[1642281515358,12.96369545,3351.0,3350.9,8.2355]
[1642281515563,13.08299545,3351.0,3350.9,8.2331]
[1642281515860,0.0103369,3350.9,3350.5,0.429]
[1642281516060,0.017373,3350.5,3350.3,0.1296]
[1642281516259,2.30841276,3350.4,3350.3,0.02078952]
[1642281516458,2.28113476,3350.4,3350.3,0.14798952]
[1642281516660,2.31502877,3350.4,3350.3,0.1312]
[1642281516960,2.31502877,3350.4,3350.3,0.15588952]
[1642281517161,2.27854077,3350.4,3350.3,0.5682]
[1642281517357,2.31822577,3350.4,3350.3,0.5706]
[1642281517607,2.31822577,3350.4,3350.3,0.5682]
[1642281517804,2.31822577,3350.4,3350.3,3.5682]
[1642281517805,1.51784583,3350.4,3350.3,3.5682]
[1642281518103,2.29484583,3350.4,3350.3,3.5674]
[1642281518303,2.29484583,3350.4,3350.3,3.5666]
[1642281518503,2.29484583,3350.4,3350.3,3.5634]
[1642281518704,2.17554583,3350.4,3350.3,3.5634]
[1642281519307,2.17554583,3350.4,3350.3,3.5626]
[1642281519510,2.17554583,3350.4,3350.3,3.5634]
[1642281519709,2.17681883,3350.4,3350.3,3.5642]
[1642281519907,2.15158583,3350.4,3350.3,3.561]
[1642281520112,2.15158583,3350.4,3350.3,3.5618]
[1642281520307,2.15158583,3350.4,3350.3,3.5626]
[1642281520507,2.13586083,3350.4,3350.3,3.5634]
[1642281520708,2.14973183,3350.4,3350.3,3.5642]
[1642281520908,2.14973183,3350.4,3350.3,3.5626]
[1642281521208,2.91286083,3350.4,3350.3,3.5626]
[1642281521456,2.91286083,3350.4,3350.3,3.5618]
[1642281521655,2.91286083,3350.4,3350.3,3.5658]
[1642281522056,2.91286083,3350.4,3350.3,3.5666]
[1642281522256,2.91286083,3350.4,3350.3,3.5658]
[1642281522456,2.91286083,3350.4,3350.3,3.5666]
[1642281522660,3.58918439,3350.4,3350.3,3.5658]
[1642281522855,3.58918439,3350.4,3350.3,3.35082736]
[1642281523457,3.58918439,3350.4,3350.3,3.35002736]
[1642281523658,3.58918439,3350.4,3350.3,3.34922736]
[1642281523857,3.60111139,3350.4,3350.3,3.34282736]
[1642281524057,3.60111139,3350.4,3350.3,3.34442736]
[1642281524257,4.37811139,3350.4,3350.3,3.34282736]
[1642281524457,4.37811139,3350.4,3350.3,3.34122736]
[1642281524659,4.37811139,3350.4,3350.3,3.34442736]
[1642281524858,4.37811139,3350.4,3350.3,3.34602736]
[1642281525108,4.37811139,3350.4,3350.3,3.34762736]
[1642281525311,4.37811139,3350.4,3350.3,3.34842736]
[1642281525508,4.37811139,3350.4,3350.3,3.34922736]
[1642281525708,4.37811139,3350.4,3350.3,3.62019809]
[1642281526407,4.37811139,3350.4,3350.3,3.61939809]
[1642281526608,4.37811139,3350.4,3350.3,3.62099809]
[1642281526808,4.37811139,3350.4,3350.3,3.61859809]
[1642281527009,4.37811139,3350.4,3350.3,3.61779809]
[1642281527408,5.15511139,3350.4,3350.3,3.61939809]
[1642281527609,5.15511139,3350.4,3350.3,3.61859809]
[1642281527610,5.14318439,3350.4,3350.3,3.61859809]
[1642281527812,5.14318439,3350.4,3350.3,3.61779809]
[1642281528008,5.14318439,3350.4,3350.3,3.61859809]
[1642281528210,5.14318439,3350.4,3350.3,3.61779809]
[1642281528408,5.14318439,3350.4,3350.3,3.61859809]
[1642281528609,5.14318439,3350.4,3350.3,3.62019809]
[1642281528865,5.14318439,3350.4,3350.3,3.61939809]
[1642281529057,5.14318439,3350.4,3350.3,3.62019809]
[1642281529258,5.14318439,3350.4,3350.3,3.61779809]
[1642281529457,5.14318439,3350.4,3350.3,3.61699809]
[1642281529657,5.14318439,3350.4,3350.3,3.61459809]
[1642281529862,5.14318439,3350.4,3350.3,3.61539809]
[1642281530059,4.14318439,3350.4,3350.3,3.61779809]
[1642281530258,4.14318439,3350.4,3350.3,3.61859809]
[1642281530464,4.14318439,3350.4,3350.3,3.61699809]
[1642281530660,4.92018439,3350.4,3350.3,3.61779809]
[1642281530861,4.92018439,3350.4,3350.3,3.62099809]
[1642281531057,4.92018439,3350.4,3350.3,3.62019809]
[1642281531258,4.92018439,3350.4,3350.3,3.62099809]
[1642281531659,4.92018439,3350.4,3350.3,3.62499809]
[1642281531858,4.92018439,3350.4,3350.3,3.62419809]
[1642281532058,4.92018439,3350.4,3350.3,3.62339809]
[1642281532260,4.92018439,3350.4,3350.3,3.62259809]
[1642281532460,4.92018439,3350.4,3350.3,3.62179809]
[1642281532708,4.93177139,3350.4,3350.3,3.62019809]
[1642281533014,4.93177139,3350.4,3350.3,3.61859809]
[1642281533409,4.93177139,3350.4,3350.3,3.61939809]
[1642281533609,4.93177139,3350.4,3350.3,3.61859809]
[1642281533908,5.70877139,3350.4,3350.3,3.61779809]
[1642281534108,5.69718439,3350.4,3350.3,3.61779809]
[1642281534308,5.69718439,3350.4,3350.3,3.61859809]
[1642281534509,5.69718439,3350.4,3350.3,3.61939809]
[1642281534710,5.69718439,3350.4,3350.3,3.61539809]
[1642281534909,5.69718439,3350.4,3350.3,3.61219809]
[1642281535112,5.69718439,3350.4,3350.3,3.61459809]
[1642281535309,5.69718439,3350.4,3350.3,3.61699809]
[1642281535515,5.69718439,3350.4,3350.3,3.61779809]
[1642281535712,5.69718439,3350.4,3350.3,3.61859809]
[1642281536210,5.69718439,3350.4,3350.3,3.61939809]
[1642281536466,5.69718439,3350.4,3350.3,3.62019809]
[1642281536667,5.69718439,3350.4,3350.3,3.61939809]
[1642281536864,5.69718439,3350.4,3350.3,3.61859809]
[1642281537064,6.47418439,3350.4,3350.3,3.61779809]
[1642281537364,6.47418439,3350.4,3350.3,3.61619809]
[1642281537566,6.47418439,3350.4,3350.3,3.61699809]
[1642281537766,6.47418439,3350.4,3350.3,3.61379809]
[1642281537967,6.47418439,3350.4,3350.3,3.60739809]
[1642281538171,6.47418439,3350.4,3350.3,3.61059809]
[1642281539067,6.47418439,3350.4,3350.3,3.61219809]
[1642281539267,6.47418439,3350.4,3350.3,3.61059809]
[1642281539769,6.47418439,3350.4,3350.3,3.61139809]
[1642281539968,6.47418439,3350.4,3350.3,3.61219809]
[1642281540209,6.47418439,3350.4,3350.3,3.61299809]
[1642281540408,7.25118439,3350.4,3350.3,3.61459809]
[1642281540609,6.25118439,3350.4,3350.3,3.61539809]
[1642281540814,6.25118439,3350.4,3350.3,3.61379809]
[1642281541108,6.25118439,3350.4,3350.3,3.61459809]
[1642281541320,6.25118439,3350.4,3350.3,3.61299809]
[1642281541510,6.25118439,3350.4,3350.3,3.61379809]
[1642281541807,6.25118439,3350.4,3350.3,3.61059809]
[1642281542009,6.25118439,3350.4,3350.3,3.61139809]
[1642281542208,6.25118439,3350.4,3350.3,3.61219809]
[1642281542410,6.25118439,3350.4,3350.3,3.61379809]
[1642281542611,9.69907292,3350.4,3350.3,3.60739809]
[1642281542813,9.69907292,3350.4,3350.3,3.48339809]
[1642281543213,9.69907292,3350.4,3350.3,3.26857073]
[1642281543418,17.04907292,3350.4,3350.3,3.26857073]
[1642281543612,9.7,3350.3,3350.1,0.06356377]
[1642281543871,10.47607292,3350.4,3349.4,0.1224]
[1642281543872,3.35,3350.1,3349.4,0.1224]
[1642281544059,3.35,3350.1,3349.3,0.548462]
[1642281544060,0.75332696,3349.5,3349.3,0.548462]
[1642281544259,0.73542096,3349.5,3349.4,0.1168]
[1642281544458,0.73542096,3349.5,3349.4,0.12408423]
[1642281544658,1.95638435,3349.5,3349.4,0.12088423]
[1642281544859,0.033271,3349.5,3349.4,0.12088423]
[1642281545058,0.033271,3349.5,3349.4,0.19814213]
[1642281545258,0.033271,3349.5,3349.4,0.19734213]
[1642281545458,0.033271,3349.5,3349.4,0.19894213]
[1642281546260,0.033271,3349.5,3349.4,0.19974213]
[1642281546461,0.033271,3349.5,3349.4,0.20134213]
[1642281546661,1.64204465,3349.5,3349.4,0.1208]
[1642281546960,2.41904465,3349.5,3349.4,0.2012579]
[1642281547161,2.41904465,3349.5,3349.4,0.2020579]
[1642281547359,2.41904465,3349.5,3349.4,0.2028579]
[1642281547608,2.41904465,3349.5,3349.4,0.1988579]
[1642281547806,2.40692265,3349.5,3349.4,0.1972579]
[1642281548006,2.41994665,3349.5,3349.4,0.43521483]
[1642281548207,2.43661665,3349.5,3349.4,0.49151717]
[1642281548409,2.40692265,3349.5,3349.4,4.54951717]
[1642281548613,2.40692265,3349.5,3349.4,4.55831717]
[1642281548808,2.40692265,3349.5,3349.4,4.55751717]
[1642281549008,2.40692265,3349.5,3349.4,4.55671717]
[1642281549209,2.40692265,3349.5,3349.4,4.55751717]
[1642281549610,2.40692265,3349.5,3349.4,4.48211258]
[1642281549810,2.40692265,3349.5,3349.4,4.47891258]
[1642281550012,3.18392265,3349.5,3349.4,7.47465927]
[1642281550212,3.18392265,3349.5,3349.4,7.47705927]
[1642281550415,3.18392265,3349.5,3349.4,7.47545927]
[1642281550813,2.18392265,3349.5,3349.4,3.42545927]
[1642281551012,2.19582965,3349.5,3349.4,3.42465927]
[1642281551218,2.19582965,3349.5,3349.4,3.85285927]
[1642281551460,2.19582965,3349.5,3349.4,3.85685927]
[1642281551662,2.19627865,3349.5,3349.4,3.85605927]
[1642281551862,2.18392265,3349.5,3349.4,3.85525927]
[1642281552061,2.18392265,3349.5,3349.4,3.85685927]
[1642281552261,2.19570665,3349.5,3349.4,3.85685927]
[1642281552760,2.19570665,3349.5,3349.4,3.85525927]
[1642281553160,2.97270665,3349.5,3349.4,3.85445927]
[1642281553361,3.00892777,3349.5,3349.4,3.85285927]
[1642281553767,2.99714377,3349.5,3349.4,3.85365927]
[1642281553961,2.99714377,3349.5,3349.4,3.85285927]
[1642281554163,2.99714377,3349.5,3349.4,3.97545927]
[1642281554362,2.99714377,3349.5,3349.4,3.97465927]
[1642281554565,2.99714377,3349.5,3349.4,3.97385927]
[1642281554765,2.99714377,3349.5,3349.4,3.97545927]
[1642281554967,2.99714377,3349.5,3349.4,3.97385927]
[1642281555423,2.99714377,3349.5,3349.4,3.97305927]
[1642281555824,2.99714377,3349.5,3349.4,3.97545927]
[1642281556224,3.00900677,3349.5,3349.4,3.97465927]
[1642281556430,3.80090777,3349.5,3349.4,3.97065927]
[1642281556625,3.80090777,3349.5,3349.4,3.84885927]
[1642281556926,3.78600677,3349.5,3349.4,3.84485927]
[1642281557125,3.82063577,3349.5,3349.4,3.84565927]
[1642281557326,3.82063577,3349.5,3349.4,3.84325927]
[1642281557625,3.80139877,3349.5,3349.4,3.84245927]
[1642281558125,3.80139877,3349.5,3349.4,3.84165927]
[1642281558526,3.77414377,3349.5,3349.4,3.85285927]
[1642281558726,3.77414377,3349.5,3349.4,3.85765927]
[1642281558970,3.77414377,3349.5,3349.4,3.85685927]
[1642281559163,3.77414377,3349.5,3349.4,3.97465927]
[1642281559362,3.77414377,3349.5,3349.4,3.97385927]
[1642281559563,4.55114377,3349.5,3349.4,3.96665927]
[1642281559764,4.55114377,3349.5,3349.4,3.96585927]
[1642281559962,4.55114377,3349.5,3349.4,3.96505927]
[1642281560162,4.55114377,3349.5,3349.4,3.96665927]
[1642281560562,4.55114377,3349.5,3349.4,3.96745927]
[1642281560765,4.55114377,3349.5,3349.4,3.84725927]
[1642281560963,3.55114377,3349.5,3349.4,3.84805927]
[1642281561365,3.56299277,3349.5,3349.4,3.84965927]
[1642281561570,3.57184777,3349.5,3349.4,3.83685927]
[1642281561764,3.57184777,3349.5,3349.4,3.84005927]
[1642281561964,3.57184777,3349.5,3349.4,3.84085927]
[1642281562166,3.57184777,3349.5,3349.4,3.83925927]
[1642281562364,3.57184777,3349.5,3349.4,3.84005927]
[1642281562617,3.57184777,3349.5,3349.4,3.83845927]
[1642281562813,5.00622085,3349.5,3349.4,3.83765927]
[1642281563214,5.00622085,3349.5,3349.4,3.84005927]
[1642281563614,5.00622085,3349.5,3349.4,3.83925927]
[1642281564318,5.00622085,3349.5,3349.4,3.84085927]
[1642281564716,5.00622085,3349.5,3349.4,3.84245927]
[1642281564915,5.00066985,3349.5,3349.4,3.84565927]
[1642281565115,5.00066985,3349.5,3349.4,3.85125927]
[1642281565315,4.99730385,3349.5,3349.4,3.85285927]
[1642281565516,4.98551685,3349.5,3349.4,3.85765927]
[1642281565917,4.99700285,3349.5,3349.4,4.30517677]
[1642281566116,5.77400285,3349.5,3349.4,4.30517677]
[1642281566373,5.76251685,3349.5,3349.4,4.42457677]
[1642281566561,5.76251685,3349.5,3349.4,4.42857677]
[1642281566763,5.76251685,3349.5,3349.4,4.42537677]
[1642281567066,5.76251685,3349.5,3349.4,4.42457677]
[1642281567461,5.76251685,3349.5,3349.4,4.42377677]
[1642281567662,5.76251685,3349.5,3349.4,4.42297677]
[1642281567860,5.76251685,3349.5,3349.4,4.18581984]
[1642281568061,5.76251685,3349.5,3349.4,4.40797677]
[1642281568260,5.76251685,3349.5,3349.4,4.18581984]
[1642281568461,5.76251685,3349.5,3349.4,4.42279495]
[1642281568861,5.76251685,3349.5,3349.4,4.42199495]
[1642281569261,6.53951685,3349.5,3349.4,4.42199495]
[1642281569462,6.53951685,3349.5,3349.4,4.42119495]
[1642281569666,6.53951685,3349.5,3349.4,4.42039495]
[1642281569862,6.53951685,3349.5,3349.4,4.41879495]
[1642281570115,6.53951685,3349.5,3349.4,3.97047745]
[1642281570514,6.53951685,3349.5,3349.4,3.97127745]
[1642281570914,6.53951685,3349.5,3349.4,3.96727745]
[1642281571115,6.55209885,3349.5,3349.4,3.84707745]
[1642281571316,5.55209885,3349.5,3349.4,3.84307745]
[1642281571514,5.55209885,3349.5,3349.4,3.84227745]
[1642281571715,5.55209885,3349.5,3349.4,3.84867745]
[1642281572114,5.55209885,3349.5,3349.4,3.84227745]
[1642281572320,5.55209885,3349.5,3349.4,3.84467745]
[1642281572518,6.32909885,3349.5,3349.4,3.84787745]
[1642281572718,6.32909885,3349.5,3349.4,3.84627745]
[1642281573119,6.32909885,3349.5,3349.4,3.84467745]
[1642281573319,6.32909885,3349.5,3349.4,3.83427745]
[1642281573519,6.32909885,3349.5,3349.4,3.83507745]
[1642281573718,6.32909885,3349.5,3349.4,3.83667745]
[1642281573969,6.32909885,3349.5,3349.4,3.83907745]
[1642281574166,6.32909885,3349.5,3349.4,3.83587745]
[1642281574364,6.32909885,3349.5,3349.4,3.83507745]
[1642281574564,6.32909885,3349.5,3349.4,3.83587745]
[1642281574766,6.32909885,3349.5,3349.4,3.83507745]
[1642281574971,6.32909885,3349.5,3349.4,3.83427745]
[1642281575164,6.32909885,3349.5,3349.4,3.83907745]
[1642281575368,6.32909885,3349.5,3349.4,3.84067745]
[1642281575566,6.32909885,3349.5,3349.4,3.84147745]
[1642281575769,7.10609885,3349.5,3349.4,3.83987745]
[1642281575967,7.10609885,3349.5,3349.4,3.83907745]
[1642281576467,7.10609885,3349.5,3349.4,3.83347745]
[1642281576668,7.22549885,3349.5,3349.4,3.83267745]
[1642281577070,7.21291685,3349.5,3349.4,3.83747745]
[1642281577475,7.22484685,3349.5,3349.4,3.83667745]
[1642281577718,7.10544685,3349.5,3349.4,3.83667745]
[1642281578116,7.10544685,3349.5,3349.4,3.83747745]
[1642281578326,7.10544685,3349.5,3349.4,3.83667745]
[1642281578718,7.10544685,3349.5,3349.4,3.83587745]
[1642281578919,7.88244685,3349.5,3349.4,3.83587745]
[1642281579119,7.88244685,3349.5,3349.4,3.83667745]
[1642281579622,7.88244685,3349.5,3349.4,3.83507745]
[1642281579820,7.88244685,3349.5,3349.4,3.83587745]
[1642281580025,7.88244685,3349.5,3349.4,3.83507745]
[1642281580422,7.88244685,3349.5,3349.4,3.83587745]
[1642281580623,7.88244685,3349.5,3349.4,3.83747745]
[1642281580820,7.88244685,3349.5,3349.4,3.83987745]
[1642281581020,7.88244685,3349.5,3349.4,3.84387745]
[1642281581670,7.88244685,3349.5,3349.4,3.84307745]
[1642281581872,7.88244685,3349.5,3349.4,3.83507745]
[1642281582069,8.65944685,3349.5,3349.4,3.83507745]
[1642281582270,8.65944685,3349.5,3349.4,3.72067745]
[1642281582674,8.65944685,3349.5,3349.4,3.83347745]
[1642281582870,8.65944685,3349.5,3349.4,3.83267745]
[1642281583069,8.65944685,3349.5,3349.4,3.83347745]
[1642281583269,8.65944685,3349.5,3349.4,3.84227745]
[1642281583474,7.65944685,3349.5,3349.4,3.84547745]
[1642281583670,7.65944685,3349.5,3349.4,3.84707745]
[1642281584071,7.65944685,3349.5,3349.4,3.84947745]
[1642281584271,7.65944685,3349.5,3349.4,3.85027745]
[1642281584474,7.65944685,3349.5,3349.4,3.84947745]
[1642281584671,7.65944685,3349.5,3349.4,3.84867745]
[1642281584872,7.65944685,3349.5,3349.4,3.84947745]
[1642281585113,7.65944685,3349.5,3349.4,3.84787745]
[1642281585321,8.43644685,3349.5,3349.4,3.84787745]
[1642281585714,8.43644685,3349.5,3349.4,3.72067745]
[1642281586114,8.37036334,3349.5,3349.4,3.72067745]
[1642281586314,8.36779654,3349.5,3349.4,3.72067745]
[1642281587216,8.36779654,3349.5,3349.4,3.83427745]
[1642281587415,8.36779654,3349.5,3349.4,3.83347745]
[1642281587616,8.36779654,3349.5,3349.4,3.83267745]
[1642281587826,8.35586654,3349.5,3349.4,3.83347745]
[1642281588015,8.35586654,3349.5,3349.4,3.83427745]
[1642281588216,8.35586654,3349.5,3349.4,3.84707745]
[1642281588414,8.35586654,3349.5,3349.4,3.84867745]
[1642281588615,7.65037308,3349.5,3349.4,3.84947745]
[1642281588887,0.010911,3350.0,3349.7,0.08599772]
[1642281589069,0.72730513,3350.0,3349.9,22.41]
[1642281589269,0.72730513,3350.0,3349.9,22.9584]
[1642281589568,0.72730513,3350.0,3349.9,8.38142201]
[1642281589874,0.72730513,3350.0,3349.9,6.37143301]
[1642281590072,0.75278013,3350.0,3349.9,0.5602]
[1642281590269,0.75278013,3350.0,3349.9,2.02117511]
[1642281590474,0.75278013,3350.0,3349.9,0.429]
[1642281591871,1.52978013,3350.0,3349.9,0.429]
[1642281592071,1.53214213,3350.0,3349.9,0.429]
[1642281592271,1.50430513,3350.0,3349.9,0.5458]
[1642281592472,1.51886913,3350.0,3349.9,0.72585693]
[1642281592717,1.51886913,3350.0,3349.9,0.73225693]
[1642281592917,1.50430513,3350.0,3349.9,0.73225693]
[1642281593121,1.50430513,3350.0,3349.9,0.73785693]
[1642281593314,1.53194413,3350.0,3349.9,0.73785693]
[1642281593517,1.53194413,3350.0,3349.9,0.73705693]
[1642281593718,0.53194413,3350.0,3349.9,0.73705693]
[1642281593919,0.53194413,3350.0,3349.9,0.73625693]
[1642281594116,1.29863942,3350.0,3349.9,0.73625693]
[1642281594318,1.29863942,3350.0,3349.9,0.72265693]
[1642281594516,1.29863942,3350.0,3349.9,0.72185693]
[1642281594716,1.29863942,3350.0,3349.9,0.71945693]
[1642281594918,1.29863942,3350.0,3349.9,0.72105693]
[1642281595117,2.07563942,3350.0,3349.9,0.72105693]
[1642281595623,2.07563942,3350.0,3349.9,0.72185693]
[1642281596018,2.07563942,3350.0,3349.9,0.72105693]
[1642281596474,2.09301242,3350.0,3349.9,0.71865693]
[1642281596673,2.09301242,3350.0,3349.9,0.60105693]
[1642281596969,2.09301242,3350.0,3349.9,0.429]
[1642281597170,8.34951342,3350.0,3349.9,0.06256595]
[1642281597370,8.33477342,3350.0,3349.4,3.05550234]
[1642281597570,0.017373,3349.7,3349.4,3.05550234]
[1642281597771,1.16622098,3349.6,3349.5,0.06286595]
[1642281597970,1.18359398,3349.6,3349.5,0.06286595]
[1642281598275,1.18359398,3349.6,3349.5,0.17646595]
[1642281598473,1.96059398,3349.6,3349.5,0.17486595]
[1642281598669,1.95901498,3349.6,3349.5,0.17486595]
[1642281598870,1.95901498,3349.6,3349.5,0.06286595]
[1642281599069,1.97638798,3349.6,3349.5,0.06286595]
[1642281599271,1.85698798,3349.6,3349.5,0.06286595]
[1642281600317,1.84119398,3349.6,3349.5,0.06286595]
[1642281600523,1.96059398,3349.6,3349.5,0.06286595]
[1642281600722,8.51059398,3349.6,3349.5,0.06286595]
[1642281600932,8.51059398,3349.6,3349.4,3.05550234]
[1642281601122,5.197333,3349.5,3349.4,3.05550234]
[1642281601719,5.974333,3349.5,3349.4,3.10053192]
[1642281601922,0.924333,3349.5,3349.4,3.05550234]
[1642281602120,0.924333,3349.5,3349.4,3.33159076]
[1642281602721,0.913309,3349.5,3349.4,3.33159076]
[1642281603321,0.930735,3349.5,3349.4,3.33159076]
[1642281603527,0.811335,3349.5,3349.4,3.33159076]
[1642281604970,0.793909,3349.5,3349.4,3.33159076]
[1642281605170,1.554,3349.5,3349.4,3.33159076]
[1642281605370,1.569067,3349.5,3349.4,3.45099076]
[1642281605570,1.586,3349.5,3349.4,3.56299076]
[1642281605871,1.586,3349.5,3349.4,3.56539076]
[1642281606077,1.569067,3349.5,3349.4,3.56459076]
[1642281606370,1.589316,3349.5,3349.4,3.44599076]
[1642281606770,1.589316,3349.5,3349.4,3.44679076]
[1642281606970,1.589316,3349.5,3349.4,3.44599076]
[1642281606971,1.569781,3349.5,3349.4,3.44599076]
[1642281607173,1.579968,3349.5,3349.4,3.44759076]
[1642281607370,1.595941,3349.5,3349.4,3.56619076]
[1642281607624,1.595941,3349.5,3349.4,3.56779076]
[1642281607625,1.554,3349.5,3349.4,3.56779076]
[1642281607826,1.568311,3349.5,3349.4,3.56939076]
[1642281608026,1.568311,3349.5,3349.4,3.57179076]
[1642281608527,2.345311,3349.5,3349.4,3.57259076]
[1642281608730,2.345311,3349.5,3349.4,3.57339076]
[1642281608927,2.345311,3349.5,3349.4,3.57259076]
[1642281609125,2.345311,3349.5,3349.4,4.00319076]
[1642281609326,1.345311,3349.5,3349.4,4.00399076]
[1642281609525,1.345311,3349.5,3349.4,4.00479076]
[1642281610327,1.345311,3349.5,3349.4,4.00399076]
[1642281610528,1.345311,3349.5,3349.4,4.00319076]
[1642281610828,1.345311,3349.5,3349.4,4.00159076]
[1642281611028,1.195311,3349.5,3349.4,4.00079076]
[1642281611236,1.211721,3349.5,3349.4,3.99679076]
[1642281611473,1.211721,3349.5,3349.4,3.99359076]
[1642281611673,1.988721,3349.5,3349.4,3.99439076]
[1642281611875,1.988721,3349.5,3349.4,3.99519076]
[1642281612173,1.988721,3349.5,3349.4,3.99839076]
[1642281612373,1.988721,3349.5,3349.4,3.99919076]
[1642281612574,1.988721,3349.5,3349.4,4.00319076]
[1642281612772,1.988721,3349.5,3349.4,3.88459076]
[1642281613178,1.972311,3349.5,3349.4,3.88299076]
[1642281613373,1.972311,3349.5,3349.4,3.88379076]
[1642281613575,1.972311,3349.5,3349.4,3.88299076]
[1642281613781,1.972311,3349.5,3349.4,3.88059076]
[1642281613976,1.986596,3349.5,3349.4,3.76059076]
[1642281614377,4.13137503,3349.5,3349.4,3.76059076]
[1642281614577,4.13137503,3349.5,3349.4,3.48450234]
[1642281614780,2.868711,3349.5,3349.4,3.51873192]
[1642281615228,2.868711,3349.5,3349.4,3.48450234]
[1642281615425,4.73517441,3349.5,3349.4,3.6959544]
[1642281615628,4.71500504,3349.5,3349.4,3.6959544]
[1642281615825,2.868711,3349.5,3349.4,3.48450234]
[1642281616025,2.868711,3349.5,3349.4,3.65037935]
[1642281616227,2.868711,3349.5,3349.4,3.48450234]
[1642281616430,2.868711,3349.5,3349.4,3.65067935]
[1642281618029,3.645711,3349.5,3349.4,3.65067935]
[1642281618630,3.6314,3349.5,3349.4,3.76267935]
[1642281618878,3.512,3349.5,3349.4,3.76347935]
[1642281619467,3.512,3349.5,3349.4,3.76507935]
[1642281619668,3.512,3349.5,3349.4,3.59970234]
[1642281619868,3.512,3349.5,3349.4,3.79319985]
[1642281620267,3.523815,3349.5,3349.4,3.79319985]
[1642281620467,3.523815,3349.5,3349.4,3.79159985]
[1642281620668,3.523815,3349.5,3349.4,3.79319985]
[1642281620872,3.523815,3349.5,3349.4,3.79079985]
[1642281621069,3.523815,3349.5,3349.4,3.67879985]
[1642281621269,4.300815,3349.5,3349.4,3.67879985]
[1642281622620,4.314653,3349.5,3349.4,3.67879985]
[1642281623823,6.19077424,3349.5,3349.4,3.67879985]
[1642281624328,6.18101385,3349.5,3349.4,3.67879985]
[1642281624524,5.091653,3349.5,3349.4,3.67879985]
[1642281625829,5.077815,3349.5,3349.4,3.67879985]
[1642281627778,5.854815,3349.5,3349.4,3.67879985]
[1642281627980,5.868516,3349.5,3349.4,3.67879985]
[1642281628378,5.868516,3349.5,3349.4,3.62329751]
[1642281630226,5.854815,3349.5,3349.4,3.73849751]
[1642281630425,5.854815,3349.5,3349.4,3.73769751]
[1642281630624,5.854815,3349.5,3349.4,3.73849751]
[1642281631026,6.631815,3349.5,3349.4,3.73769751]
[1642281631627,6.631815,3349.5,3349.4,3.62329751]
[1642281631828,6.646184,3349.5,3349.4,3.62329751]
[1642281632032,8.62874213,3349.5,3349.4,3.62329751]
[1642281632242,8.62874213,3349.5,3349.4,3.19429751]
[1642281632432,5.0,3349.4,3349.3,3.62329751]
[1642281632634,8.04351246,3349.4,3349.3,3.62329751]
[1642281632833,8.04351246,3349.4,3348.6,0.2346]
[1642281632834,7.0,3349.3,3348.6,0.2346]
[1642281633040,2.091006,3348.7,3348.4,0.429]
[1642281633239,0.017373,3348.5,3348.4,0.429]
[1642281633433,0.012129,3348.5,3348.4,0.429]
[1642281633634,2.03466287,3348.5,3348.4,2.32754072]
[1642281633884,2.69523731,3348.5,3348.4,2.32754072]
[1642281634071,2.69523731,3348.5,3348.4,0.00568423]
[1642281634271,2.69523731,3348.5,3348.4,2.31611704]
[1642281634272,3.47223731,3348.5,3348.4,2.31611704]
[1642281634470,3.47223731,3348.5,3348.4,2.31043281]
[1642281634671,1.46685044,3348.5,3348.4,2.31043281]
[1642281634876,1.46685044,3348.5,3348.2,0.00682108]
[1642281635073,1.46685044,3348.5,3348.4,2.30775706]
[1642281635271,1.46685044,3348.5,3348.2,0.00682108]
[1642281635473,0.016659,3348.4,3348.2,0.00682108]
[1642281635673,0.016659,3348.4,3348.3,2.26299097]
[1642281636073,0.016659,3348.4,3348.3,2.26924363]
[1642281636273,0.016659,3348.4,3348.3,0.00625266]
[1642281636474,0.016659,3348.4,3348.3,2.37772558]
[1642281636674,0.016659,3348.4,3348.3,2.25467292]
[1642281636874,0.016659,3348.4,3348.3,0.12305266]
[1642281637176,0.016659,3348.4,3348.3,1.75044087]
[1642281637621,0.793659,3348.4,3348.3,1.75044087]
[1642281638223,0.793659,3348.4,3348.3,0.06185962]
[1642281638424,0.793659,3348.4,3348.3,1.81261661]
[1642281638623,0.793659,3348.4,3348.3,0.06185962]
[1642281638923,0.793659,3348.4,3348.3,1.79348722]
[1642281639323,0.793659,3348.4,3348.3,0.06185962]
[1642281639529,0.793659,3348.4,3348.3,1.86072262]
[1642281639725,0.793659,3348.4,3348.3,1.86152262]
[1642281639932,0.793659,3348.4,3348.3,1.86312262]
[1642281640226,0.793659,3348.4,3348.3,1.83758837]
[1642281640424,0.793659,3348.4,3348.3,1.83838837]
[1642281640627,0.793659,3348.4,3348.3,4.83678837]
[1642281640830,1.570659,3348.4,3348.3,3.17545962]
[1642281641027,1.554,3348.4,3348.3,4.81595269]
[1642281641225,1.554,3348.4,3348.3,4.81915269]
[1642281641473,1.554,3348.4,3348.3,4.77598537]
[1642281641673,1.554,3348.4,3348.3,4.77678537]
[1642281641876,1.554,3348.4,3348.3,4.90418537]
[1642281642071,1.566126,3348.4,3348.3,4.90898537]
[1642281642273,1.580786,3348.4,3348.3,4.90338537]
[1642281642477,1.566126,3348.4,3348.3,4.90338537]
[1642281642671,1.566126,3348.4,3348.3,4.90418537]
[1642281642871,1.566126,3348.4,3348.3,4.90498537]
[1642281643072,1.566126,3348.4,3348.3,5.06988456]
[1642281643272,1.580421,3348.4,3348.3,5.06828456]
[1642281643472,1.566126,3348.4,3348.3,5.07068456]
[1642281643673,1.566126,3348.4,3348.3,3.47335881]
[1642281643872,1.566126,3348.4,3348.3,5.33430178]
[1642281644072,2.343126,3348.4,3348.3,5.33590178]
[1642281644572,2.343126,3348.4,3348.3,5.33430178]
[1642281644984,2.343126,3348.4,3348.3,5.33350178]
[1642281645524,2.343126,3348.4,3348.3,5.33190178]
[1642281645923,2.343126,3348.4,3348.3,5.32950178]
[1642281646121,2.357085,3348.4,3348.3,5.32630178]
[1642281646521,2.357085,3348.4,3348.3,5.32710178]
[1642281646921,2.357085,3348.4,3348.3,5.31750178]
[1642281647121,2.357085,3348.4,3348.3,5.31830178]
[1642281647323,3.134085,3348.4,3348.3,5.19810178]
[1642281648123,3.134085,3348.4,3348.3,5.62710178]